bitfinex-derivatives/quotes_ETHF0:USTF0_20250501
["timestamp","ask_amount","ask_price","bid_price","bid_amount"]
[1746086547567,3.788,1813.5,1813.4,1.10273]
[1746086547762,3.788,1813.5,1813.4,2.78293]
[1746086550062,6.9958,1813.5,1813.4,2.78293]
[1746086550260,8.5801,1813.5,1813.4,2.78293]
[1746086551860,3.788,1813.5,1813.4,2.78293]
[1746086553666,6.9958,1813.5,1813.4,2.78293]
[1746086555668,3.788,1813.5,1813.4,2.78293]
[1746086557266,6.9958,1813.5,1813.4,2.78293]
[1746086559368,3.788,1813.5,1813.4,2.78293]
[1746086560068,5.4638,1813.5,1813.4,2.78293]
[1746086560571,6.56647,1813.5,1813.4,2.78293]
[1746086560765,6.56647,1813.5,1813.4,1.10273]
[1746086560966,5.4638,1813.5,1813.4,1.10273]
[1746086562172,8.6716,1813.5,1813.4,1.10273]
[1746086562372,9.77427,1813.5,1813.4,1.10273]
[1746086562573,9.77427,1813.5,1813.2,2.75712]
[1746086562574,1.10282,1813.3,1813.2,1.10279]
[1746086562870,1.10289,1813.2,1813.1,1.10286]
[1746086563067,6.47449,1813.2,1813.1,1.10286]
[1746086563262,5.3716,1813.2,1813.1,1.10286]
[1746086566172,5.3716,1813.2,1813.1,2.77506]
[1746086573383,6.47445,1813.2,1813.1,2.77506]
[1746086573583,6.47445,1813.2,1813.1,1.10286]
[1746086573784,1.10297,1813.1,1813.0,1.10292]
[1746086573974,7.63027,1813.1,1813.0,1.10292]
[1746086574178,11.41827,1813.1,1813.0,1.10292]
[1746086578488,8.21047,1813.1,1813.0,1.10292]
[1746086578686,11.41827,1813.1,1813.0,1.10292]
[1746086578879,10.3153,1813.1,1813.0,1.10292]
[1746086579682,6.9958,1813.1,1813.0,1.93662]
[1746086579884,6.9958,1813.1,1813.0,2.72452]
[1746086580694,3.788,1813.1,1813.0,2.72452]
[1746086581293,1.6252,1813.4,1813.3,1.10279]
[1746086582096,5.4132,1813.4,1813.3,1.10279]
[1746086582598,5.4132,1813.4,1813.3,2.81659]
[1746086583903,6.51593,1813.4,1813.3,2.81659]
[1746086584094,6.51593,1813.4,1813.3,1.95289]
[1746086585297,6.51593,1813.4,1813.3,1.10279]
[1746086585497,5.4132,1813.4,1813.3,1.10279]
[1746086585691,6.51593,1813.4,1813.3,1.10279]
[1746086587300,5.4132,1813.4,1813.3,1.10279]
[1746086587500,6.51593,1813.4,1813.3,1.10279]
[1746086588202,5.4132,1813.4,1813.3,1.10279]
[1746086588404,3.788,1813.4,1813.3,1.10279]
[1746086588903,3.788,1813.4,1813.3,1.92739]
[1746086589901,4.89073,1813.4,1813.3,1.10279]
[1746086590098,2.75709,1813.3,1812.9,2.75754]
[1746086590300,4.31081,1813.0,1812.9,1.10303]
[1746086590606,1.10307,1812.9,1812.8,1.10303]
[1746086590903,4.33627,1812.9,1812.8,1.10303]
[1746086591105,8.12427,1812.9,1812.8,1.10303]
[1746086605418,4.89107,1812.9,1812.8,1.10303]
[1746086605620,4.89107,1812.9,1812.8,3.53543]
[1746086606119,6.63057,1812.9,1812.8,3.53543]
[1746086606319,7.42657,1812.9,1812.8,3.53543]
[1746086606818,7.42657,1812.9,1812.8,1.10303]
[1746086609016,7.42657,1812.9,1812.8,2.75343]
[1746086609622,6.3235,1812.9,1812.8,2.75343]
[1746086609823,7.42653,1812.9,1812.8,2.75343]
[1746086610423,6.3235,1812.9,1812.8,2.75343]
[1746086611023,7.42653,1812.9,1812.8,2.75343]
[1746086611221,7.42653,1812.9,1812.8,1.10303]
[1746086614625,6.3235,1812.9,1812.8,1.10303]
[1746086614813,6.3235,1812.9,1812.8,2.72203]
[1746086615018,7.42653,1812.9,1812.8,2.72203]
[1746086615813,7.42653,1812.9,1812.8,1.10303]
[1746086616019,9.08118,1812.9,1812.6,3.281]
[1746086616320,4.31102,1812.7,1812.6,1.10317]
[1746086616922,6.77572,1812.7,1812.6,1.10317]
[1746086617120,10.56372,1812.7,1812.6,1.10317]
[1746086617326,1.10334,1812.5,1812.4,1.10329]
[1746086617513,4.31114,1812.5,1812.4,1.10329]
[1746086617719,1.10334,1812.4,1812.3,1.91837]
[1746086618027,1.10334,1812.4,1812.2,1.10343]
[1746086618028,1.10346,1812.3,1812.2,1.10343]
[1746086618217,1.10346,1812.2,1812.1,8.4398602]
[1746086618423,2.76566,1812.2,1812.1,8.4398602]
[1746086618719,6.25766,1812.2,1812.1,7.3363802]
[1746086619022,1.10364,1811.9,1811.8,7.31372609]
[1746086619213,7.80344,1811.9,1811.8,7.31372609]
[1746086619528,12.80344,1811.9,1811.8,7.31372609]
[1746086620014,13.59764,1811.9,1811.8,7.31372609]
[1746086620722,17.38564,1811.9,1811.8,7.31372609]
[1746086622428,1.10383,1811.6,1811.5,1.10389]
[1746086622623,4.31163,1811.6,1811.4,1.1039]
[1746086622825,2.69729,1811.5,1811.4,1.1039]
[1746086623327,8.09968,1811.6,1811.5,1.10389]
[1746086629429,1.10405,1811.3,1811.2,1.10405]
[1746086629629,3.2078,1811.3,1811.2,1.10405]
[1746086630219,6.9958,1811.3,1811.2,1.10405]
[1746086636836,8.09981,1811.3,1811.2,1.10405]
[1746086637032,1.10407,1811.2,1811.1,2.67698]
[1746086637338,2.81577,1811.2,1811.1,2.67698]
[1746086638141,6.60377,1811.2,1811.1,2.67698]
[1746086639438,6.60377,1811.2,1811.1,1.10408]
[1746086639738,6.60377,1811.2,1811.1,2.71628]
[1746086640234,1.10413,1811.1,1811.0,1.6767]
[1746086640541,4.31193,1811.1,1811.0,0.8734]
[1746086640842,1.10425,1810.9,1810.8,2.71647]
[1746086641137,4.31205,1810.9,1810.8,2.71647]
[1746086641540,3.2078,1810.9,1810.8,2.71647]
[1746086642140,6.9958,1810.9,1810.8,2.71647]
[1746086643045,8.10005,1810.9,1810.8,2.71647]
[1746086643844,1.10432,1810.8,1810.7,1.10432]
[1746086644037,2.72492,1810.8,1810.7,1.10432]
[1746086644335,6.51292,1810.8,1810.7,2.69022]
[1746086645246,5.4086,1810.8,1810.7,2.69022]
[1746086645450,4.89231,1810.8,1810.7,2.69022]
[1746086649049,6.56871,1810.8,1810.7,2.69022]
[1746086649250,6.56871,1810.8,1810.7,2.69027]
[1746086649547,1.10444,1810.7,1810.6,1.1044]
[1746086649746,4.31224,1810.7,1810.6,1.1044]
[1746086649944,5.98864,1810.7,1810.6,1.1044]
[1746086650145,9.77664,1810.7,1810.6,1.1044]
[1746086650344,9.77664,1810.7,1810.6,2.7374]
[1746086651650,8.6722,1810.7,1810.6,2.7374]
[1746086652041,9.77657,1810.7,1810.6,2.7374]
[1746086652959,8.6722,1810.7,1810.6,2.7374]
[1746086653250,9.77657,1810.7,1810.6,2.7374]
[1746086653553,8.6722,1810.7,1810.6,2.7374]
[1746086653741,9.77657,1810.7,1810.6,2.7374]
[1746086657245,9.77657,1810.7,1810.6,1.1044]
[1746086657952,9.77657,1810.7,1810.6,2.7707]
[1746086658247,9.77657,1810.7,1810.6,1.6663]
[1746086658644,1.10444,1810.6,1810.5,1.6532]
[1746086658845,1.10444,1810.6,1810.5,3.3195]
[1746086659148,6.49424,1810.6,1810.5,3.3195]
[1746086659548,4.89244,1810.6,1810.5,4.424]
[1746086659749,6.60994,1810.6,1810.5,4.424]
[1746086660350,6.60994,1810.6,1810.5,3.3195]
[1746086660550,6.60994,1810.6,1810.5,4.424]
[1746086660945,3.788,1810.6,1810.5,4.424]
[1746086661142,4.89244,1810.6,1810.5,4.424]
[1746086670057,8.10024,1810.6,1810.5,4.424]
[1746086676561,8.10024,1810.6,1810.5,3.3195]
[1746086676963,8.10024,1810.6,1810.5,4.424]
[1746086682072,9.82644,1810.6,1810.5,4.424]
[1746086683167,9.82644,1810.6,1810.5,1.1045]
[1746086686370,1.1045,1810.5,1810.4,1.10452]
[1746086686669,1.10456,1810.4,1810.3,4.54857]
[1746086687167,1.10462,1810.3,1810.2,4.61364]
[1746086687571,1.10462,1810.3,1810.2,6.20484]
[1746086689272,4.89262,1810.3,1810.2,6.20484]
[1746086692173,1.10462,1810.3,1810.2,6.20484]
[1746086693175,4.89262,1810.3,1810.2,6.20484]
[1746086694373,1.10462,1810.3,1810.2,6.20484]
[1746086695380,2.82692,1810.4,1810.3,1.10462]
[1746086695578,2.82692,1810.4,1810.3,2.78232]
[1746086695778,6.87002,1810.4,1810.3,1.10462]
[1746086696278,10.65802,1810.4,1810.3,1.10462]
[1746086697679,1.10468,1810.3,1810.2,1.10463]
[1746086697988,2.77878,1810.3,1810.2,1.10463]
[1746086698182,6.56678,1810.3,1810.2,1.10463]
[1746086699283,6.56678,1810.3,1810.2,2.83163]
[1746086700481,5.4621,1810.3,1810.2,2.83163]
[1746086700980,3.788,1810.3,1810.2,2.83163]
[1746086701174,3.2078,1810.4,1810.3,1.10462]
[1746086701375,3.2078,1810.4,1810.3,2.83162]
[1746086703782,4.31236,1810.4,1810.3,2.83162]
[1746086704283,3.2078,1810.4,1810.3,2.83162]
[1746086704584,4.31236,1810.4,1810.3,2.83162]
[1746086704784,3.2078,1810.4,1810.3,2.83162]
[1746086706784,1.97242,1810.7,1810.4,5.52263]
[1746086706983,3.71752,1810.7,1810.6,1.10444]
[1746086707175,7.50552,1810.7,1810.6,1.10444]
[1746086707375,7.50547,1810.7,1810.6,1.10444]
[1746086707680,5.5331,1810.7,1810.6,1.10444]
[1746086708486,3.788,1810.7,1810.6,1.10444]
[1746086708988,3.788,1810.7,1810.6,2.78014]
[1746086709179,2.83605,1810.9,1810.8,1.10431]
[1746086710186,2.83605,1810.9,1810.7,3.3084]
[1746086710187,1.10431,1810.8,1810.7,1.10433]
[1746086710485,7.72421,1810.8,1810.7,1.10433]
[1746086711189,11.51221,1810.8,1810.7,1.10433]
[1746086712994,11.51221,1810.8,1810.7,2.72263]
[1746086714279,8.30441,1810.8,1810.7,2.72263]
[1746086714479,11.51221,1810.8,1810.7,2.72263]
[1746086715791,9.5701,1810.8,1810.7,2.72263]
[1746086715989,8.7276,1810.8,1810.7,2.72263]
[1746086716188,4.9396,1810.8,1810.7,2.72263]
[1746086717092,8.7276,1810.8,1810.7,2.72263]
[1746086718693,9.83191,1810.8,1810.7,2.72263]
[1746086722293,6.62411,1810.8,1810.7,2.72263]
[1746086723494,6.62411,1810.8,1810.7,1.10433]
[1746086726499,1.10444,1810.7,1810.6,1.10439]
[1746086726689,1.10444,1810.6,1810.5,3.65425]
[1746086726995,7.67891,1810.7,1810.6,1.10444]
[1746086727189,5.4935,1810.7,1810.6,1.10444]
[1746086727395,9.80567,1810.7,1810.6,2.84854]
[1746086730490,6.9958,1810.7,1810.6,2.84854]
[1746086731199,3.2078,1810.7,1810.6,2.84854]
[1746086735595,4.31217,1810.7,1810.6,2.84854]
[1746086737701,1.10437,1810.7,1810.6,2.84854]
[1746086738806,3.62437,1810.7,1810.6,2.84854]
[1746086739105,7.41237,1810.7,1810.6,2.84854]
[1746086741098,7.41237,1810.7,1810.6,1.10444]
[1746086741806,1.10444,1810.6,1810.5,2.73105]
[1746086742010,3.59744,1810.6,1810.5,1.94295]
[1746086742202,6.80524,1810.6,1810.5,1.94295]
[1746086742705,1.1045,1810.5,1810.4,4.59951]
[1746086742908,2.7919,1810.5,1810.4,4.59951]
[1746086743118,2.7919,1810.5,1810.4,3.495]
[1746086743318,1.10456,1810.4,1810.3,1.10457]
[1746086743619,6.85506,1810.4,1810.3,1.10457]
[1746086744011,6.85506,1810.4,1810.3,2.80217]
[1746086744012,5.7505,1810.4,1810.3,2.80217]
[1746086744317,6.9958,1810.4,1810.3,2.80217]
[1746086744819,8.10036,1810.4,1810.3,2.80217]
[1746086745118,4.31236,1810.4,1810.3,2.80217]
[1746086746120,1.10456,1810.4,1810.3,2.80217]
[1746086749819,3.2078,1810.6,1810.5,1.1045]
[1746086750515,3.2078,1810.6,1810.5,2.8031]
[1746086752920,1.7006,1810.7,1810.6,1.10444]
[1746086753121,2.80497,1810.7,1810.6,2.68814]
[1746086756127,6.01277,1810.7,1810.6,2.68814]
[1746086758029,6.01277,1810.7,1810.6,1.10444]
[1746086759533,4.9084,1810.7,1810.6,1.10444]
[1746086759725,6.01277,1810.7,1810.6,1.10444]
[1746086760031,4.9084,1810.7,1810.6,1.10444]
[1746086760527,4.9084,1810.7,1810.6,2.74234]
[1746086760725,3.2078,1810.7,1810.6,2.74234]
[1746086766536,6.75882,1810.8,1810.7,1.10437]
[1746086766736,5.89302,1810.8,1810.7,1.10437]
[1746086766937,5.89302,1810.8,1810.7,2.74937]
[1746086767338,9.68102,1810.8,1810.7,2.74937]
[1746086769735,10.49082,1810.8,1810.7,2.74937]
[1746086770138,10.49082,1810.8,1810.7,1.10437]
[1746086770835,1.10443,1810.7,1810.6,1.10437]
[1746086771035,2.82043,1810.7,1810.6,1.10437]
[1746086772143,6.60843,1810.7,1810.6,1.10437]
[1746086777045,1.1045,1810.6,1810.5,1.10445]
[1746086777245,5.9232,1810.6,1810.5,1.10445]
[1746086778042,4.8187,1810.6,1810.5,1.10445]
[1746086778245,8.6067,1810.6,1810.5,1.10445]
[1746086778540,8.6067,1810.6,1810.5,1.96075]
[1746086779246,4.8187,1810.6,1810.5,1.96075]
[1746086780643,5.92314,1810.6,1810.5,1.96075]
[1746086782042,4.8187,1810.6,1810.5,1.96075]
[1746086782239,3.2078,1810.6,1810.5,1.96075]
[1746086783544,2.83022,1810.7,1810.6,1.10444]
[1746086784253,1.10442,1810.7,1810.6,3.67244]
[1746086784948,2.82592,1810.7,1810.6,3.67244]
[1746086785647,6.03372,1810.7,1810.6,3.67244]
[1746086787043,9.82172,1810.7,1810.6,2.79964]
[1746086787250,9.82172,1810.7,1810.6,1.10444]
[1746086788752,1.1045,1810.6,1810.5,1.10446]
[1746086788950,3.6177,1810.6,1810.5,1.10446]
[1746086789145,7.4057,1810.6,1810.3,7.83365]
[1746086789339,3.62136,1810.5,1810.4,1.10452]
[1746086789543,1.10462,1810.3,1810.2,8.44590614]
[1746086789743,4.31242,1810.3,1810.2,7.34124614]
[1746086790255,8.93912,1810.3,1810.2,8.44592614]
[1746086791250,8.93912,1810.3,1810.2,7.34124614]
[1746086792751,1.10468,1810.2,1810.1,1.1047]
[1746086792947,3.66458,1810.2,1810.1,1.1047]
[1746086793150,7.45258,1810.2,1810.1,1.1047]
[1746086794255,7.45258,1810.2,1810.0,3.2854]
[1746086794256,1.10474,1810.1,1810.0,1.10476]
[1746086794461,5.98444,1810.1,1810.0,1.10476]
[1746086795142,9.77244,1810.1,1810.0,1.10476]
[1746086796954,1.1048,1810.0,1809.9,2.72634]
[1746086797156,1.1048,1810.0,1809.8,0.79]
[1746086797157,1.10486,1809.9,1809.8,0.79]
[1746086797362,1.10486,1809.9,1809.6,3.493]
[1746086797363,1.10492,1809.8,1809.7,1.93534]
[1746086797552,2.84652,1809.8,1809.7,3.63644]
[1746086797947,1.7416,1809.8,1809.7,3.63644]
[1746086798155,2.84652,1809.8,1809.7,3.63644]
[1746086799461,1.10492,1809.8,1809.7,3.63644]
[1746086799661,2.73252,1809.8,1809.7,3.63644]
[1746086799961,3.2078,1809.9,1809.8,1.10492]
[1746086800260,4.31266,1809.9,1809.8,2.69552]
[1746086801966,3.2078,1809.9,1809.8,2.69552]
[1746086806166,4.9117,1809.9,1809.8,2.69552]
[1746086809365,1.7039,1809.9,1809.8,2.69552]
[1746086814271,1.7039,1809.9,1809.8,43.49552]
[1746086819072,1.7039,1809.9,1809.8,2.69552]
[1746086819769,2.4928,1809.9,1809.8,2.69552]
[1746086820371,3.59766,1809.9,1809.8,2.69552]
[1746086820871,1.10492,1809.8,1809.7,1.10494]
[1746086821072,2.80582,1809.8,1809.7,1.10494]
[1746086821463,1.7009,1809.8,1809.7,2.74994]
[1746086822371,1.1049,1809.9,1809.8,1.10492]
[1746086822669,1.1049,1809.9,1809.8,3.59732]
[1746086826977,2.6856,1809.9,1809.8,3.59732]
[1746086828372,2.6856,1809.9,1809.8,2.74992]
[1746086830974,1.5807,1809.9,1809.8,2.74992]
[1746086831574,2.68556,1809.9,1809.8,2.74992]
[1746086831975,1.5807,1809.9,1809.8,2.74992]
[1746086832765,2.68556,1809.9,1809.8,2.74992]
[1746086833579,1.5807,1809.9,1809.8,2.74992]
[1746086833781,2.68556,1809.9,1809.8,2.74992]
[1746086834582,1.5807,1809.9,1809.8,2.74992]
[1746086834975,2.68556,1809.9,1809.8,2.74992]
[1746086838082,1.10486,1809.9,1809.8,2.74992]
[1746086838486,2.71456,1809.9,1809.8,2.74992]
[1746086840284,2.71456,1809.9,1809.8,1.10492]
[1746086841179,6.50256,1809.9,1809.8,1.10492]
[1746086841777,6.50256,1809.9,1809.7,1.10495]
[1746086841778,1.10498,1809.8,1809.7,1.10495]
[1746086841978,2.78758,1809.8,1809.7,1.10495]
[1746086842179,9.78338,1809.8,1809.7,1.10495]
[1746086844787,1.10498,1809.7,1809.6,3.60302]
[1746086844983,1.10505,1809.6,1809.4,10.83624614]
[1746086845188,4.31291,1809.5,1809.4,8.44637614]
[1746086846087,8.10091,1809.5,1809.4,8.44637614]
[1746086847091,8.10091,1809.5,1809.4,10.17827614]
[1746086847291,4.31291,1809.5,1809.4,8.44641614]
[1746086847785,3.2078,1809.5,1809.4,10.17831614]
[1746086848190,4.31291,1809.5,1809.4,10.17831614]
[1746086848689,4.31291,1809.5,1809.4,2.83707]
[1746086848690,3.2078,1809.5,1809.4,2.83707]
[1746086848884,3.788,1809.5,1809.4,2.83707]
[1746086849285,1.10507,1809.6,1809.5,1.10511]
[1746086849487,1.10507,1809.6,1809.5,2.71961]
[1746086851687,3.2078,1809.7,1809.6,1.10505]
[1746086851890,4.31278,1809.7,1809.6,4.37115]
[1746086853893,4.31278,1809.7,1809.6,3.55725]
[1746086854092,4.31278,1809.7,1809.6,1.10505]
[1746086855292,8.10078,1809.7,1809.6,1.10505]
[1746086856097,3.2078,1809.7,1809.6,1.10505]
[1746086856294,4.31278,1809.7,1809.6,1.10505]
[1746086857495,3.2078,1809.7,1809.6,1.10505]
[1746086859697,6.1861,1809.9,1809.6,1.10505]
[1746086859698,3.2078,1810.1,1809.8,1.10492]
[1746086859889,5.13117,1810.1,1810.0,1.10474]
[1746086860293,1.1048,1810.0,1809.9,2.76042]
[1746086860493,1.1048,1810.0,1809.9,1.10482]
[1746086861197,4.8928,1810.0,1809.9,1.10482]
[1746086864998,6.5376,1810.0,1809.9,1.10482]
[1746086866598,5.4328,1810.0,1809.9,1.10482]
[1746086866787,3.788,1810.0,1809.9,1.10482]
[1746086867290,1.1048,1810.0,1809.9,1.10482]
[1746086868299,5.6675,1810.1,1810.0,1.1048]
[1746086868300,3.2078,1810.1,1810.0,1.1048]
[1746086869200,3.2078,1810.1,1810.0,2.7401]
[1746086869908,6.76269,1810.4,1810.3,1.10462]
[1746086870586,6.76269,1810.4,1810.3,1.93322]
[1746086871100,10.55069,1810.4,1810.3,1.93322]
[1746086871902,10.55069,1810.4,1810.3,1.10462]
[1746086872199,1.10462,1810.3,1810.2,2.83843]
[1746086872399,2.73882,1810.3,1810.2,2.83843]
[1746086873299,2.73882,1810.3,1810.2,1.10463]
[1746086873501,3.56322,1810.3,1810.2,1.10463]
[1746086874696,6.77102,1810.3,1810.2,1.10463]
[1746086875702,3.56322,1810.3,1810.2,1.10463]
[1746086875905,6.77102,1810.3,1810.2,1.10463]
[1746086876102,10.55902,1810.3,1810.2,1.10463]
[1746086877106,6.77102,1810.3,1810.2,1.10463]
[1746086877606,3.56322,1810.3,1810.2,1.10463]
[1746086877804,6.77102,1810.3,1810.2,1.10463]
[1746086878806,3.56322,1810.3,1810.2,1.10463]
[1746086879106,7.35122,1810.3,1810.2,1.10463]
[1746086879405,10.55902,1810.3,1810.2,1.10463]
[1746086880107,6.77102,1810.3,1810.2,1.10463]
[1746086881919,3.56322,1810.3,1810.2,1.10463]
[1746086882219,6.77102,1810.3,1810.2,1.10463]
[1746086883619,6.77102,1810.3,1810.2,2.75093]
[1746086884118,3.56322,1810.3,1810.2,2.75093]
[1746086884318,6.77102,1810.3,1810.2,2.75093]
[1746086891325,4.31242,1810.3,1810.2,2.75093]
[1746086891516,3.2078,1810.3,1810.2,2.75093]
[1746086891712,4.31242,1810.3,1810.2,2.75093]
[1746086891914,5.98122,1810.3,1810.2,2.75093]
[1746086894725,5.98122,1810.3,1810.2,1.10463]
[1746086895229,9.76922,1810.3,1810.2,1.10463]
[1746086897625,6.9958,1810.3,1810.2,1.10463]
[1746086897827,8.10042,1810.3,1810.2,3.62713]
[1746086898128,4.31242,1810.3,1810.2,3.62713]
[1746086902228,5.92322,1810.3,1810.2,3.62713]
[1746086903424,4.8186,1810.3,1810.2,3.62713]
[1746086903625,3.2078,1810.3,1810.2,3.62713]
[1746086905626,1.1045,1810.5,1810.3,1.10462]
[1746086905627,3.2078,1810.5,1810.3,1.10462]
[1746086905826,4.3123,1810.5,1810.4,3.70126]
[1746086906022,4.3123,1810.5,1810.4,4.57136]
[1746086906423,3.2078,1810.5,1810.4,4.57136]
[1746086911423,5.10659,1810.7,1810.6,1.10444]
[1746086911831,5.10659,1810.7,1810.6,3.64494]
[1746086912230,8.89459,1810.7,1810.6,3.64494]
[1746086914634,7.7902,1810.7,1810.6,3.64494]
[1746086915333,5.6974,1810.7,1810.6,3.64494]
[1746086915732,6.80177,1810.7,1810.6,3.64494]
[1746086916032,5.6974,1810.7,1810.6,3.64494]
[1746086916424,5.6974,1810.7,1810.6,44.44494]
[1746086916824,4.903,1810.7,1810.6,44.44494]
[1746086917840,6.00737,1810.7,1810.6,44.44494]
[1746086920535,4.903,1810.7,1810.6,44.44494]
[1746086920735,3.2078,1810.7,1810.6,44.44494]
[1746086921127,6.9958,1810.7,1810.6,44.44494]
[1746086921330,9.77117,1810.7,1810.6,44.44494]
[1746086921531,10.61237,1810.7,1810.6,44.44494]
[1746086922135,6.82437,1810.7,1810.6,44.44494]
[1746086922328,6.82437,1810.7,1810.6,41.90444]
[1746086922527,6.82437,1810.7,1810.6,1.10444]
[1746086923227,10.61237,1810.7,1810.6,1.10444]
[1746086923428,9.508,1810.7,1810.6,1.10444]
[1746086924838,10.61237,1810.7,1810.6,1.10444]
[1746086925637,9.508,1810.7,1810.6,1.10444]
[1746086925935,10.61237,1810.7,1810.6,1.10444]
[1746086930141,9.508,1810.7,1810.6,1.10444]
[1746086930642,8.6668,1810.7,1810.6,2.74884]
[1746086931145,4.8788,1810.7,1810.6,2.74884]
[1746086937448,1.671,1810.7,1810.6,2.74884]
[1746086937650,4.8788,1810.7,1810.6,2.74884]
[1746086938551,4.8788,1810.7,1810.6,43.54884]
[1746086940649,3.2078,1810.7,1810.6,43.54884]
[1746086944255,4.8728,1810.7,1810.6,43.54884]
[1746086944558,5.97717,1810.7,1810.6,43.54884]
[1746086946057,5.97717,1810.7,1810.6,41.90444]
[1746086946259,5.97717,1810.7,1810.6,1.10444]
[1746086946459,6.77907,1810.7,1810.6,1.10444]
[1746086947253,10.56707,1810.7,1810.6,1.10444]
[1746086955183,2.7611,1810.6,1810.3,13.17124614]
[1746086955384,1.10456,1810.4,1810.3,8.44583614]
[1746086955881,2.72636,1810.4,1810.3,8.44583614]
[1746086956182,6.51436,1810.4,1810.3,8.44583614]
[1746086956879,6.51436,1810.4,1810.3,1.10459]
[1746086957183,2.72636,1810.4,1810.3,1.10459]
[1746086958276,6.51436,1810.4,1810.3,1.10459]
[1746086958882,6.51436,1810.4,1810.3,2.72859]
[1746086960189,2.72636,1810.4,1810.3,2.72859]
[1746086960986,4.31235,1810.5,1810.4,1.10456]
[1746086961185,1.10455,1810.5,1810.4,3.63086]
[1746086962288,3.67407,1810.6,1810.5,1.1045]
[1746086962583,3.67407,1810.6,1810.5,3.6121]
[1746086963385,3.67404,1810.6,1810.5,3.6121]
[1746086965390,2.5696,1810.6,1810.5,3.6121]
[1746086965687,3.67404,1810.6,1810.5,3.6121]
[1746086966291,7.46204,1810.6,1810.5,3.6121]
[1746086967292,3.67404,1810.6,1810.5,3.6121]
[1746086968092,7.46204,1810.6,1810.5,3.6121]
[1746086969894,7.46204,1810.6,1810.5,1.9268]
[1746086970194,7.46204,1810.6,1810.5,1.1045]
[1746086970790,1.10454,1810.5,1810.4,1.10451]
[1746086971089,3.54734,1810.5,1810.4,1.10451]
[1746086972094,7.33534,1810.5,1810.4,1.10451]
[1746086972596,1.10456,1810.4,1810.3,1.6844]
[1746086972791,1.10462,1810.3,1810.2,8.44588614]
[1746086972992,4.31242,1810.3,1810.2,8.44588614]
[1746086973196,6.52792,1810.3,1810.2,8.44588614]
[1746086973389,3.788,1810.3,1810.2,8.44588614]
[1746086973590,3.788,1810.3,1810.2,11.04228614]
[1746086974399,3.2078,1810.5,1810.4,1.10456]
[1746086974799,3.2078,1810.5,1810.4,2.83456]
[1746086975198,6.9958,1810.5,1810.4,2.83456]
[1746086976091,8.1003,1810.5,1810.4,2.83456]
[1746086976293,4.3123,1810.5,1810.4,2.83456]
[1746086978100,9.7343,1810.5,1810.4,2.83456]
[1746086978602,6.5265,1810.5,1810.4,2.83456]
[1746086981296,2.7385,1810.5,1810.4,2.83456]
[1746086983107,6.5265,1810.5,1810.4,2.83456]
[1746086984806,6.5265,1810.5,1810.4,1.10456]
[1746086986397,6.5265,1810.5,1810.3,2.4705]
[1746086986600,3.54036,1810.4,1810.3,1.10459]
[1746086986898,4.38436,1810.4,1810.3,1.10459]
[1746086989116,8.17236,1810.4,1810.3,1.10459]
[1746086990506,7.0678,1810.4,1810.3,1.10459]
[1746086990713,6.2238,1810.4,1810.3,1.10459]
[1746086990911,6.2238,1810.4,1810.3,2.83529]
[1746086991212,2.4358,1810.4,1810.3,2.83529]
[1746086991613,1.609,1810.4,1810.3,2.83529]
[1746086992011,1.10453,1810.5,1810.4,1.10456]
[1746086992313,1.7071,1810.5,1810.4,4.52466]
[1746086992709,2.8116,1810.5,1810.4,4.52466]
[1746086995817,6.0194,1810.5,1810.4,4.52466]
[1746086999217,9.8074,1810.5,1810.4,4.52466]
[1746087001222,9.8074,1810.5,1810.4,1.94686]
[1746087002921,9.8074,1810.5,1810.4,4.39616]
[1746087003624,8.7029,1810.5,1810.4,4.39616]
[1746087003826,6.9958,1810.5,1810.4,4.39616]
[1746087005026,3.788,1810.5,1810.4,4.39616]
[1746087005222,4.0397,1810.7,1810.6,1.10444]
[1746087005223,5.14409,1810.7,1810.6,1.10444]
[1746087005624,6.78329,1810.7,1810.6,3.55804]
[1746087006121,8.635,1810.7,1810.6,3.55804]
[1746087007121,3.2078,1810.7,1810.6,3.55804]
[1746087007426,5.7323,1810.9,1810.8,1.10431]
[1746087007728,6.83657,1810.9,1810.8,1.10431]
[1746087008228,10.62457,1810.9,1810.8,1.10431]
[1746087008426,10.62457,1810.9,1810.8,2.81601]
[1746087008729,9.5203,1810.9,1810.8,2.81601]
[1746087009029,10.62455,1810.9,1810.8,2.81601]
[1746087009730,9.5203,1810.9,1810.8,2.81601]
[1746087010537,10.62455,1810.9,1810.8,2.81601]
[1746087012436,9.5203,1810.9,1810.8,2.81601]
[1746087012736,10.62455,1810.9,1810.8,3.60651]
[1746087014341,9.79265,1810.9,1810.8,3.60651]
[1746087014635,8.6884,1810.9,1810.8,3.60651]
[1746087014933,6.9958,1810.9,1810.8,3.60651]
[1746087015234,3.2078,1811.4,1811.3,1.10401]
[1746087015439,6.86785,1811.4,1811.3,1.10401]
[1746087016143,9.5519,1811.4,1811.3,1.10401]
[1746087016439,9.5519,1811.4,1811.3,2.82121]
[1746087016640,10.65585,1811.4,1811.3,2.82121]
[1746087017137,10.65585,1811.4,1811.3,1.10401]
[1746087018438,9.5519,1811.4,1811.3,1.10401]
[1746087018645,10.65585,1811.4,1811.3,1.10401]
[1746087019136,9.5519,1811.4,1811.3,1.10401]
[1746087019533,9.5519,1811.4,1811.3,1.90921]